bitfinex/quotes_SOLUSD_20220306
["timestamp","ask_amount","ask_price","bid_price","bid_amount"]
[1646561399403,200.0,86.732,86.681,27.34224881]
[1646561399604,200.0,86.732,86.681,2.83613526]
[1646561400208,200.0,86.732,86.68,13.72]
[1646561400606,114.2,86.731,86.68,13.72]
[1646561401206,114.2,86.729,86.61,171.51]
[1646561401409,114.2,86.729,86.651,51.17132708]
[1646561401607,114.2,86.727,86.651,51.17132708]
[1646561401809,159.85823963,86.725,86.651,51.17132708]
[1646561402411,69.61,86.72,86.61,14.955092]
[1646561402610,76.71939878,86.716,86.61,14.955092]
[1646561402911,69.61,86.714,86.62,13.72]
[1646561403113,69.61,86.702,86.621,5.769]
[1646561403311,24.4232,86.713,86.62,13.72]
[1646561403312,114.2,86.695,86.62,13.72]
[1646561403509,121.99,86.695,86.62,13.72]
[1646561403711,114.2,86.693,86.62,13.72]
[1646561403909,114.2,86.693,86.621,5.769]
[1646561404808,61.08649226,86.691,86.621,5.769]
[1646561405010,114.2,86.69,86.621,5.769]
[1646561405611,114.2,86.688,86.62,13.72]
[1646561406615,114.2,86.689,86.62,13.72]
[1646561406816,114.2,86.689,86.621,5.769]
[1646561407633,69.61,86.689,86.621,5.769]
[1646561407834,69.61,86.681,86.621,5.769]
[1646561408033,114.2,86.674,86.611,60.72608576]
[1646561408236,119.969,86.674,86.611,60.72608576]
[1646561409234,114.2,86.674,86.611,60.72608576]
[1646561410439,51.67533173,86.675,86.611,60.72608576]
[1646561410635,51.67533173,86.675,86.612,5.769]
[1646561411136,51.67533173,86.675,86.612,30.27511355]
[1646561411537,1.52013765,86.69,86.612,30.27511355]
[1646561411737,1.52013765,86.696,86.613,3.38460263]
[1646561411936,1.52013765,86.705,86.616,0.77944439]
[1646561412137,0.57939878,86.716,86.631,114.2]
[1646561412338,0.57939878,86.716,86.632,0.86327405]
[1646561412537,0.57939878,86.716,86.633,114.2]
[1646561412739,0.57939878,86.716,86.641,114.2]
[1646561412939,0.57939878,86.716,86.652,0.86327405]
[1646561413140,9.878e-05,86.716,86.661,114.2]
[1646561413341,9.878e-05,86.716,86.67,13.72]
[1646561413538,9.878e-05,86.716,86.671,65.01413252]
[1646561413740,9.878e-05,86.716,86.671,89.52024607]
[1646561413941,9.878e-05,86.716,86.68,17.3008]
[1646561414243,126.41409878,86.732,86.69,13.72]
[1646561414442,126.41409878,86.732,86.691,120.82927405]
[1646561414641,126.41409878,86.732,86.692,61.18619241]
[1646561414842,126.41409878,86.732,86.7,17.2939]
[1646561415041,126.41409878,86.732,86.711,57.89910326]
[1646561415240,126.41409878,86.732,86.712,5.765]
[1646561415643,126.41409878,86.732,86.712,8.60113526]
[1646561416043,126.41409878,86.732,86.713,2.83613526]
[1646561416242,126.41409878,86.732,86.714,5.765]
[1646561416847,126.41409878,86.732,86.715,2.83613526]
[1646561417046,126.41409878,86.732,86.72,13.72]
[1646561420249,126.41409878,86.732,86.711,57.89910326]
[1646561422151,126.41409878,86.732,86.712,2.83613526]
[1646561422350,126.41409878,86.732,86.712,10.29613526]
[1646561422753,126.41409878,86.732,86.713,2.83613526]
[1646561422954,126.41409878,86.732,86.714,5.765]
[1646561423254,3.765e-05,86.791,86.715,114.8114445]
[1646561423455,4.52745983,86.84,86.732,2.83613526]
[1646561423456,5.763,86.839,86.732,2.83613526]
[1646561423653,24.4334,86.839,86.733,6.45386284]
[1646561423853,54.86206183,86.84,86.735,114.2]
[1646561424055,5.761,86.856,86.75,171.51]
[1646561424256,23.0879,86.861,86.76,185.23]
[1646561424457,47.5152,86.878,86.77,171.51]
[1646561424656,47.5152,86.878,86.78,13.72]
[1646561424861,47.5152,86.878,86.782,0.95472553]
[1646561425056,52.7818099,86.877,86.784,0.95472553]
[1646561425256,52.7818099,86.877,86.786,0.95472553]
[1646561425456,52.7818099,86.877,86.8,13.72]
[1646561425660,5.759,86.876,86.801,51.33386787]
[1646561425858,5.759,86.876,86.8,13.72]
[1646561426858,5.759,86.876,86.801,60.50587761]
[1646561427558,5.759,86.876,86.802,2.83613526]
[1646561427759,5.759,86.876,86.802,10.85613526]
[1646561427959,5.759,86.876,86.802,8.02]
[1646561428165,30.0,86.824,86.746,17.5967]
[1646561428366,5.0,86.823,86.739,17.6486]
[1646561428565,5.0,86.823,86.72,13.72]
[1646561428761,55.77035315,86.822,86.664,17.2331]
[1646561428970,13.72,86.81,86.671,5.762]
[1646561429167,17.31,86.77,86.646,4.56000966]
[1646561429365,5.766,86.769,86.647,5.766]
[1646561429563,69.90301982,86.769,86.624,4.80145731]
[1646561429769,69.90301982,86.769,86.61,13.72]
[1646561429770,114.2,86.768,86.625,5.767]
[1646561429964,114.2,86.768,86.6,13.72]
[1646561429965,114.2,86.766,86.616,5.767]
[1646561430163,86.9217,86.75,86.604,61.73936909]
[1646561430365,183.81,86.739,86.605,5.768]
[1646561430566,114.2,86.735,86.605,5.768]
[1646561430764,114.2,86.719,86.605,5.768]
[1646561430965,13.72,86.71,86.604,61.73936909]
[1646561431167,13.72,86.71,86.605,5.769]
[1646561431364,127.92,86.71,86.605,5.769]
[1646561431563,145.2452,86.71,86.605,5.769]
[1646561431767,114.2,86.708,86.604,61.73936909]
[1646561431967,114.2,86.704,86.55,13.72]
[1646561432167,114.2,86.689,86.551,5.771]
[1646561432374,5.43830562,86.686,86.551,5.771]
[1646561432573,69.61,86.683,86.541,17.83518712]
[1646561432775,114.2,86.669,86.542,5.772]
[1646561432974,114.2,86.659,86.543,47.96609814]
[1646561433174,4.85833606,86.658,86.527,17.92185379]
[1646561433377,69.61,86.652,86.49,13.72]
[1646561433599,4.94465585,86.638,86.49,13.72]
[1646561433799,5.20845258,86.629,86.491,5.776]
[1646561433997,17.345,86.59,86.486,5.776]
[1646561434297,133.16250064,86.589,86.487,46.5680355]
[1646561434499,133.16250064,86.589,86.488,5.777]
[1646561434897,114.2,86.579,86.451,5.777]
[1646561435098,31.0675,86.57,86.441,5.779]
[1646561435298,5.779,86.569,86.453,17.92185379]
[1646561435498,5.779,86.569,86.454,5.779]
[1646561435899,49.40092566,86.569,86.455,49.70847963]
[1646561436099,49.40092566,86.569,86.456,5.779]
[1646561436313,114.2,86.568,86.456,5.779]
[1646561436501,114.2,86.559,86.456,5.779]
[1646561436800,69.61,86.546,86.431,5.779]
[1646561436999,69.61,86.546,86.391,5.781]
[1646561437000,69.61,86.539,86.391,5.781]
[1646561437203,114.2,86.529,86.39,13.72]
[1646561437400,5.783,86.529,86.44,17.3467]
[1646561437601,5.6511969,86.565,86.441,5.781]
[1646561437802,13.72,86.56,86.442,63.51246993]
[1646561438002,5.78,86.559,86.45,57.8137]
[1646561438202,22.764,86.567,86.452,114.2]
[1646561438404,22.764,86.567,86.451,5.78]
[1646561438405,22.764,86.567,86.454,115.04630862]
[1646561438603,22.764,86.567,86.456,0.85555739]
[1646561438806,22.764,86.567,86.473,114.2]
[1646561439004,5.779,86.626,86.491,0.85555739]
[1646561439204,5.779,86.626,86.501,0.85555739]
[1646561439608,5.776,86.629,86.502,23.35382771]
[1646561439805,5.776,86.629,86.503,5.42884657]
[1646561440004,5.775,86.668,86.511,0.97141152]
[1646561440205,5.775,86.668,86.53,171.51]
[1646561440406,5.775,86.668,86.512,4.4227275]
[1646561440407,5.775,86.668,86.54,13.72]
[1646561440604,118.50861768,86.667,86.55,13.72]
[1646561440806,114.2,86.665,86.55,13.72]
[1646561441007,5.773,86.666,86.55,13.72]
[1646561441008,114.2,86.663,86.551,49.04787521]
[1646561441206,51.30022306,86.664,86.551,49.04787521]
[1646561441207,114.2,86.661,86.551,49.04787521]
[1646561441509,183.81,86.659,86.551,49.04787521]
[1646561441708,69.61,86.652,86.551,49.04787521]
[1646561442005,9.82961077,86.658,86.551,49.04787521]
[1646561442006,114.2,86.635,86.551,49.04787521]
[1646561442206,114.2,86.633,86.551,49.04787521]
[1646561442506,4.43488074,86.628,86.551,49.04787521]
[1646561442711,5.774,86.627,86.551,49.04787521]
[1646561442907,13.72,86.63,86.551,49.04787521]
[1646561443107,19.494,86.66,86.551,58.32787521]
[1646561443508,5.774,86.66,86.551,58.32787521]
[1646561443808,5.773,86.662,86.56,17.3238]
[1646561444010,5.772,86.668,86.57,13.72]
[1646561444208,5.772,86.668,86.56,31.0438]
[1646561444407,56.31765421,86.667,86.57,23.56]
[1646561444610,5.772,86.666,86.571,51.44744186]
[1646561446018,114.2,86.665,86.571,51.44744186]
[1646561446211,114.2,86.659,86.571,51.44744186]
[1646561446412,114.2,86.657,86.571,51.44744186]
[1646561446611,114.2,86.655,86.571,51.44744186]
[1646561446808,114.2,86.653,86.571,51.44744186]
[1646561447009,5.772,86.652,86.571,51.44744186]
[1646561447209,5.772,86.657,86.571,51.44744186]
[1646561447411,23.4567,86.669,86.571,58.49744186]
[1646561447608,23.4567,86.669,86.573,0.6149589]
[1646561447808,23.4567,86.669,86.572,2.83613526]
[1646561448207,23.4567,86.669,86.58,17.3202]
[1646561448409,23.4567,86.669,86.59,13.72]
[1646561448609,23.4567,86.669,86.59,22.31]
[1646561449213,23.4567,86.669,86.591,60.21809933]
[1646561449513,5.771,86.71,86.592,0.74778139]
[1646561449811,5.771,86.728,86.592,3.58391665]
[1646561450110,5.771,86.728,86.594,0.74778139]
[1646561450311,53.04112239,86.727,86.593,2.83613526]
[1646561450510,53.04112239,86.727,86.595,2.83613526]
[1646561451111,5.771,86.726,86.61,17.3098]
[1646561451312,5.771,86.726,86.62,13.72]
[1646561451814,5.771,86.726,86.621,2.83613526]
[1646561453713,53.04112239,86.727,86.621,2.83613526]
[1646561454318,53.04112239,86.727,86.62,31.0324]
[1646561454319,114.2,86.719,86.62,13.72]
[1646561454515,118.68460834,86.717,86.62,13.72]
[1646561454713,5.769,86.716,86.62,13.72]
[1646561454914,5.769,86.717,86.62,13.72]
[1646561455115,2.43402894,86.716,86.62,13.72]
[1646561455316,5.769,86.715,86.62,13.72]
[1646561455717,2.43402894,86.714,86.62,13.72]
[1646561455917,9.54530391,86.709,86.62,13.72]
[1646561456316,8.20302894,86.708,86.62,13.72]
[1646561456718,114.2,86.707,86.62,13.72]
[1646561456921,5.769,86.706,86.62,13.72]
[1646561457117,5.769,86.707,86.62,13.72]
[1646561457417,5.769,86.707,86.611,50.27040619]
[1646561457418,114.2,86.699,86.611,50.27040619]
[1646561457618,5.769,86.698,86.58,13.72]
[1646561457818,2.43402894,86.698,86.59,13.72]
[1646561458018,5.769,86.697,86.59,13.72]
[1646561458220,114.2,86.696,86.59,13.72]
[1646561458520,114.2,86.692,86.591,51.30708619]
[1646561458724,119.969,86.691,86.591,51.30708619]
[1646561459121,122.40302894,86.691,86.591,51.30708619]
[1646561459327,2.43402894,86.69,86.591,51.30708619]
[1646561459636,114.2,86.688,86.591,51.30708619]
[1646561459843,114.2,86.686,86.591,51.30708619]
[1646561460043,2.43402894,86.69,86.591,51.30708619]
[1646561460044,114.2,86.684,86.591,51.30708619]
[1646561460244,114.2,86.682,86.591,51.30708619]
[1646561460442,119.971,86.681,86.591,51.30708619]
[1646561460643,114.2,86.679,86.591,51.30708619]
[1646561460848,114.2,86.677,86.591,51.30708619]
[1646561461042,114.2,86.675,86.591,51.30708619]
[1646561461246,114.2,86.673,86.591,51.30708619]
[1646561461443,114.2,86.671,86.591,51.30708619]
[1646561461643,114.2,86.669,86.591,51.30708619]
[1646561461943,114.2,86.665,86.591,51.30708619]
[1646561462146,114.2,86.663,86.591,51.30708619]
[1646561462343,114.2,86.661,86.591,51.30708619]
[1646561462544,5.771,86.66,86.591,51.30708619]
[1646561462944,23.1012,86.66,86.56,13.72]
[1646561463945,23.1012,86.66,86.561,47.72534047]
[1646561464147,114.2,86.659,86.561,47.72534047]
[1646561464348,114.2,86.657,86.561,47.72534047]
[1646561464546,114.2,86.655,86.561,47.72534047]
[1646561464747,114.2,86.651,86.561,47.72534047]
[1646561464946,114.2,86.649,86.562,5.773]
[1646561465547,114.2,86.649,86.52,23.5121]
[1646561465548,183.81,86.639,86.52,23.5121]
[1646561465751,183.81,86.639,86.51,13.72]
[1646561465945,2.43402894,86.638,86.518,2.83613526]
[1646561466346,183.81,86.626,86.519,56.44393859]
[1646561466545,114.2,86.616,86.519,50.66893859]
[1646561466746,183.81,86.616,86.52,5.775]
[1646561466945,114.2,86.614,86.52,5.775]
[1646561467352,69.61,86.613,86.52,5.775]
[1646561467548,183.81,86.606,86.52,5.775]
[1646561467750,114.2,86.604,86.52,5.775]
[1646561467951,114.2,86.602,86.519,50.66893859]
[1646561468952,114.2,86.635,86.52,5.776]
[1646561469151,5.775,86.634,86.52,45.70356104]
[1646561469352,13.72,86.67,86.521,0.54592692]
[1646561469551,44.07863136,86.652,86.521,50.98963654]
[1646561469751,69.61,86.661,86.522,47.60757436]
[1646561469954,69.61,86.661,86.541,114.2]
[1646561470152,5.774,86.66,86.55,13.72]
[1646561470352,114.2,86.659,86.55,13.72]
[1646561470554,5.774,86.658,86.551,136.79116104]
[1646561470758,5.773,86.661,86.551,216.28018805]
[1646561470954,47.4302,86.693,86.554,70.25252389]
[1646561471158,47.4302,86.693,86.572,0.75620439]
[1646561471355,5.771,86.708,86.581,114.2]
[1646561471556,114.2,86.707,86.583,0.88046257]
[1646561471753,72.63304309,86.726,86.581,114.2]
[1646561471754,114.2,86.703,86.585,49.52252799]
[1646561471956,114.2,86.701,86.587,0.88046257]
[1646561472254,114.2,86.699,86.6,13.72]
[1646561472456,114.2,86.697,86.601,58.6915808]
[1646561472655,5.769,86.696,86.601,58.6915808]
[1646561473057,5.769,86.703,86.61,17.3178]
[1646561473357,61.32138296,86.704,86.621,64.76096603]
[1646561473555,61.32138296,86.704,86.622,5.769]
[1646561473756,5.769,86.709,86.622,5.769]
[1646561473957,5.769,86.709,86.623,0.61795124]
[1646561474159,5.769,86.709,86.624,5.769]
[1646561474358,23.7608,86.723,86.63,17.3136]
[1646561474557,5.769,86.746,86.64,13.72]
[1646561474758,59.84481464,86.745,86.642,61.93707224]
[1646561474960,114.2,86.744,86.643,5.767]
[1646561476058,114.2,86.744,86.644,2.83613526]
[1646561476260,114.2,86.744,86.65,17.3094]
[1646561476458,114.2,86.744,86.651,5.767]
[1646561476861,114.2,86.744,86.651,8.60313526]
[1646561477161,114.2,86.742,86.651,8.60313526]
[1646561477359,5.767,86.741,86.651,5.767]
[1646561477562,59.84481464,86.745,86.651,5.767]
[1646561478162,59.84481464,86.745,86.652,2.83613526]
[1646561478362,114.2,86.744,86.653,5.767]
[1646561478861,114.2,86.744,86.654,2.83613526]
[1646561479063,114.2,86.744,86.655,5.767]
[1646561479272,114.2,86.744,86.656,55.74394981]
[1646561479562,69.61,86.743,86.656,55.74394981]
[1646561479763,69.61,86.735,86.574,4.34858123]
[1646561479962,69.61,86.725,86.62,13.72]
[1646561480168,183.81,86.716,86.62,13.72]
[1646561480368,114.2,86.714,86.621,5.769]
[1646561480565,114.2,86.712,86.621,5.769]
[1646561480766,114.2,86.71,86.622,64.72413632]
[1646561481064,114.2,86.708,86.623,5.769]
[1646561481466,114.2,86.708,86.623,16.9263311]
[1646561481667,114.2,86.706,86.623,16.9263311]
[1646561481868,114.2,86.704,86.623,16.9263311]
[1646561482566,114.2,86.702,86.623,11.1573311]
[1646561482770,114.2,86.702,86.624,5.769]
[1646561482966,114.2,86.7,86.623,11.1573311]
[1646561483169,114.2,86.689,86.623,11.1573311]
[1646561483370,69.61,86.696,86.623,11.1573311]
[1646561483371,114.2,86.687,86.623,11.1573311]
[1646561483569,5.769,86.688,86.623,11.1573311]
[1646561483872,5.769,86.696,86.623,11.1573311]
[1646561484070,5.769,86.72,86.624,2.83613526]
[1646561484269,2.42720452,86.721,86.624,2.83613526]
[1646561484473,5.768,86.746,86.624,117.03613526]
[1646561484969,24.2979,86.75,86.626,114.2]
[1646561485271,5.767,86.746,86.641,114.2]
[1646561485473,5.767,86.746,86.642,0.51963834]
[1646561485671,5.767,86.749,86.643,114.2]
[1646561485869,5.767,86.774,86.644,0.68097702]
[1646561486071,114.2,86.781,86.644,0.68097702]
[1646561486270,119.967,86.78,86.645,170.3030365]
[1646561486474,119.967,86.78,86.646,0.68097702]
[1646561486674,119.967,86.78,86.661,114.2]
[1646561486871,119.967,86.78,86.68,17.3026]
[1646561487071,5.767,86.78,86.681,55.99503956]
[1646561487273,5.767,86.78,86.682,114.2]
[1646561487472,45.9984,86.786,86.682,114.2]
[1646561487473,45.9984,86.786,86.683,0.58172606]
[1646561487874,45.9984,86.786,86.69,17.3005]
[1646561488071,45.9984,86.786,86.69,31.0205]
[1646561488272,53.86954736,86.785,86.69,31.0205]
[1646561488473,53.86954736,86.785,86.691,2.83613526]
[1646561488874,5.764,86.784,86.691,2.83613526]
[1646561489474,5.764,86.784,86.7,17.2991]
[1646561489675,3.02304309,86.813,86.7,17.2991]
[1646561489676,5.764,86.798,86.7,26.9591]
[1646561489875,5.763,86.809,86.702,0.69473524]
[1646561490075,75.373,86.809,86.701,2.83613526]
[1646561490276,75.373,86.809,86.702,0.51515484]
[1646561490477,114.2,86.806,86.702,61.73777934]
[1646561490879,116.62720452,86.806,86.702,61.73777934]
[1646561491077,116.62720452,86.806,86.71,17.2967]
[1646561491278,116.62720452,86.806,86.71,31.0167]
[1646561493581,2.42720452,86.806,86.71,38.2567]
[1646561493784,5.763,86.805,86.711,0.50632635]
[1646561493978,5.763,86.805,86.711,11.1573311]
[1646561494182,8.19020452,86.805,86.711,11.1573311]
[1646561494679,2.42720452,86.805,86.72,17.2942]
[1646561494881,5.763,86.809,86.72,17.2942]
[1646561495080,136.781,86.81,86.72,17.2942]
[1646561495281,22.581,86.81,86.72,31.0142]
[1646561495681,22.581,86.81,86.721,160.20928322]
[1646561495881,5.761,86.809,86.74,17.2902]
[1646561496681,22.581,86.81,86.74,17.2902]
[1646561496884,22.581,86.81,86.741,61.45622886]
[1646561497083,136.781,86.81,86.741,72.61355996]
[1646561497292,72.03720452,86.809,86.741,11.1573311]
[1646561497482,114.2,86.806,86.741,11.1573311]
[1646561497685,5.761,86.805,86.741,11.1573311]
[1646561497986,22.581,86.81,86.741,11.1573311]
[1646561498385,22.581,86.81,86.742,45.63069746]
[1646561498985,136.781,86.81,86.742,45.63069746]
[1646561499185,69.61,86.807,86.741,11.1573311]
[1646561499386,114.2,86.796,86.741,11.1573311]
[1646561499584,114.2,86.794,86.741,11.1573311]
[1646561499984,114.2,86.792,86.741,11.1573311]
[1646561500184,114.2,86.79,86.741,11.1573311]
[1646561500785,114.2,86.788,86.701,11.1573311]
[1646561501009,114.2,86.786,86.701,11.1573311]
[1646561501211,114.2,86.784,86.702,56.19558871]
[1646561501407,113.7,86.782,86.702,56.19558871]
[1646561501611,5.764,86.781,86.702,56.19558871]
[1646561501908,113.7,86.78,86.702,56.19558871]
[1646561502109,113.7,86.778,86.702,56.19558871]
[1646561502309,113.7,86.776,86.702,56.19558871]
[1646561503413,69.61,86.773,86.703,11.1573311]
[1646561503610,5.764,86.775,86.703,11.1573311]
[1646561503611,113.7,86.766,86.703,11.1573311]
[1646561503810,113.7,86.764,86.703,11.1573311]
[1646561504010,183.31,86.756,86.703,11.1573311]
[1646561504211,113.7,86.754,86.703,11.1573311]
[1646561504411,69.61,86.766,86.703,11.1573311]
[1646561504412,113.7,86.752,86.703,11.1573311]
[1646561504611,5.765,86.751,86.703,11.1573311]
[1646561504811,5.765,86.752,86.703,11.1573311]
[1646561505013,5.765,86.774,86.703,11.1573311]
[1646561505211,5.764,86.783,86.703,11.1573311]
[1646561505411,6.30826678,86.782,86.703,11.1573311]
[1646561505611,114.2,86.78,86.703,11.1573311]
[1646561505914,5.764,86.781,86.703,11.1573311]
[1646561505915,114.2,86.778,86.703,11.1573311]
[1646561506311,114.2,86.778,86.694,11.1573311]
[1646561506711,114.2,86.78,86.694,11.1573311]
[1646561507313,114.2,86.776,86.694,11.1573311]
[1646561508313,114.2,86.774,86.694,11.1573311]
[1646561508515,114.2,86.772,86.694,11.1573311]
[1646561508713,69.61,86.777,86.694,11.1573311]
[1646561508714,114.2,86.77,86.694,11.1573311]
[1646561509115,114.2,86.768,86.694,11.1573311]
[1646561509314,114.2,86.766,86.694,11.1573311]
[1646561509514,69.61,86.777,86.694,11.1573311]
[1646561509515,114.2,86.764,86.694,11.1573311]
[1646561509917,5.765,86.785,86.694,11.1573311]
[1646561510116,24.8179,86.791,86.694,17.4073311]
[1646561510319,24.8179,86.791,86.695,2.83613526]
[1646561510917,5.24820717,86.79,86.7,17.2997]
[1646561511217,5.24820717,86.79,86.696,11.1573311]
[1646561511218,114.2,86.779,86.696,11.1573311]
[1646561511417,5.24820717,86.79,86.696,11.1573311]
[1646561511418,114.2,86.771,86.696,11.1573311]
[1646561511617,114.2,86.765,86.696,11.1573311]
[1646561514518,114.2,86.765,86.693,48.09038038]
[1646561514719,113.7,86.765,86.694,16.9223311]
[1646561515324,3.02304309,86.777,86.694,16.9223311]
[1646561515521,3.02304309,86.777,86.695,0.70397483]
[1646561515720,3.02304309,86.776,86.696,5.764]
[1646561515922,3.02304309,86.781,86.71,13.72]
[1646561516125,3.02304309,86.789,86.711,0.76504295]
[1646561516325,9.32941344,86.79,86.712,60.27327915]
[1646561516722,9.32941344,86.79,86.713,8.59913526]
[1646561516923,6.30637035,86.79,86.713,8.59913526]
[1646561517123,6.30637035,86.789,86.714,2.83613526]
[1646561517524,6.30637035,86.79,86.714,2.83613526]
[1646561518226,6.30637035,86.79,86.72,17.2956]
[1646561518424,3.02304309,86.799,86.73,13.72]
[1646561518626,6.30447359,86.809,86.731,6.57836442]
[1646561519026,6.30447359,86.809,86.732,60.62468846]
[1646561519229,6.30447359,86.809,86.733,5.761]
[1646561520330,6.30447359,86.809,86.732,63.46082372]
[1646561520730,6.30447359,86.809,86.74,17.2921]
[1646561520933,3.02304309,86.823,86.741,5.761]
[1646561521133,3.02304309,86.823,86.741,8.59713526]
[1646561521333,3.02304309,86.823,86.742,2.83613526]
[1646561521531,3.02304309,86.823,86.743,5.761]
[1646561521732,117.22304309,86.829,86.743,5.761]
[1646561521932,7.41180424,86.821,86.761,63.47429758]
[1646561522132,121.61180424,86.821,86.761,63.47429758]
[1646561522933,114.2,86.819,86.761,63.47429758]
[1646561523333,114.2,86.817,86.761,63.47429758]
[1646561523735,114.2,86.817,86.762,11.1573311]
[1646561523940,183.81,86.817,86.762,11.1573311]
[1646561524135,69.61,86.814,86.762,11.1573311]
[1646561524337,114.2,86.805,86.762,11.1573311]
[1646561524536,114.2,86.803,86.762,11.1573311]
[1646561524738,114.2,86.801,86.762,11.1573311]
[1646561524936,69.61,86.796,86.762,3.11e-05]
[1646561525137,114.2,86.786,86.762,3.11e-05]
[1646561525337,114.2,86.784,86.762,3.11e-05]
[1646561525537,114.2,86.782,86.762,3.11e-05]
[1646561526440,0.0199689,86.759,86.691,48.60269227]
[1646561526637,0.0199689,86.759,86.692,5.765]
[1646561528338,0.0199689,86.759,86.693,2.83613526]
[1646561528538,0.0199689,86.759,86.694,5.765]
[1646561529042,0.0199689,86.759,86.695,2.83613526]
[1646561529243,0.0199689,86.759,86.696,5.765]
[1646561529744,0.0199689,86.759,86.7,17.3005]
[1646561530145,0.0199689,86.759,86.701,5.765]
[1646561530345,0.0199689,86.759,86.701,8.60113526]
[1646561530547,0.0199689,86.759,86.702,0.54555617]
[1646561530752,0.0199689,86.759,86.71,17.294]
[1646561530943,0.0199689,86.759,86.72,13.72]
[1646561531144,0.0199689,86.759,86.721,5.764]
[1646561531546,0.0199689,86.759,86.722,0.50592286]
[1646561531743,0.0199689,86.759,86.723,5.764]
[1646561532143,0.0199689,86.759,86.723,8.60013526]
[1646561532343,0.0199689,86.759,86.724,2.83613526]
[1646561532943,0.0199689,86.759,86.724,11.72613526]
[1646561533146,0.0199689,86.759,86.725,6.27260729]
[1646561533345,0.0199689,86.759,86.725,9.10874255]
[1646561533544,0.0199689,86.759,86.726,62.12456434]
[1646561533749,0.0199689,86.759,86.74,13.72]
[1646561533949,0.0199689,86.759,86.741,63.93294901]
[1646561534350,0.0199689,86.759,86.741,66.76908427]
[1646561534552,0.0199689,86.759,86.742,117.76041642]
[1646561534769,0.0199689,86.759,86.745,0.80669373]
[1646561535074,0.0199689,86.759,86.746,5.763]
[1646561535275,0.0199689,86.759,86.741,63.93294901]
[1646561535471,0.0199689,86.759,86.72,13.72]
[1646561535670,0.0199689,86.759,86.714,5.763]
[1646561535874,0.0199689,86.759,86.711,5.764]
[1646561536470,0.0199689,86.759,86.712,50.29138384]
[1646561536871,0.0199689,86.759,86.691,5.764]
[1646561537271,0.0199689,86.759,86.69,13.72]
[1646561537875,0.0199689,86.759,86.691,48.07270008]
[1646561538074,0.0199689,86.759,86.692,5.765]
[1646561538474,0.0199689,86.759,86.691,50.90883534]
[1646561538674,0.0199689,86.759,86.691,48.07270008]
[1646561539180,0.0199689,86.759,86.692,5.765]
[1646561539975,0.0199689,86.759,86.691,48.07270008]
[1646561540775,0.0199689,86.759,86.671,2.83613526]
[1646561541176,0.0199689,86.759,86.66,13.72]
[1646561541376,114.2,86.757,86.66,13.72]
[1646561541573,5.766,86.758,86.66,13.72]
[1646561541574,114.2,86.755,86.66,13.72]
[1646561541778,114.2,86.753,86.661,60.34735865]
[1646561541976,114.2,86.753,86.67,17.3063]
[1646561542176,114.2,86.753,86.67,31.0263]
[1646561542575,114.2,86.753,86.671,2.83613526]
[1646561542774,0.0199689,86.759,86.671,2.83613526]
[1646561543375,0.0199689,86.759,86.68,16.8042]
[1646561543575,0.0199689,86.759,86.68,30.5242]
[1646561543876,0.0199689,86.759,86.681,64.13583924]
[1646561544076,0.0199689,86.759,86.682,0.52477132]
[1646561544276,0.0199689,86.759,86.682,9.81090658]
[1646561544477,0.0199689,86.759,86.683,23.71664904]
[1646561544674,0.0199689,86.759,86.684,0.52477132]
[1646561544875,0.0199689,86.759,86.69,17.3022]